Cogmind - Beta 11.1 @@@ ROGUE MODE // 2022.05.01 @ 02:52:00 Player: aperiodic Result: Destroyed by as-43728 with Assembled F-torch Performance ------------- Evolutions (0) 0 Regions Visited (2) 400 Robots Destroyed (34) 170 Value Destroyed (485) 485 Prototype IDs (5) 100 Alien Tech Used (0) 0 Bonus (0) 0 TOTAL SCORE: 1155 Bonus ------- None Cogmind --------- Core Integrity 0/250 Matter 300/300 Energy 40/100 System Corruption 0% Temperature Warm (104) Movement Treading (240) Ox1 Location -10/Mines Parts ------- > --- POWER (1) -------- (None) > --- PROPULSION (2) --- Light Treads Light Treads > --- UTILITY (2) ------ High-capacity Storage Unit > --- WEAPON (2) ------- Plasma Flamer > --- INVENTORY (20) --- Compact Wheel Small Storage Unit High-capacity Matter Pod (200) EM Pulse Gun Small Laser Particle Gun Light Assault Rifle Light Assault Rifle Light Assault Rifle Light Assault Rifle Light Assault Rifle Mining Laser Peak State ------------ > --- POWER ------------ (None) > --- PROPULSION ------- Light Treads Light Treads > --- UTILITY ---------- Heat Sink High-capacity Storage Unit > --- WEAPON ----------- Medium Laser Plasma Flamer > --- INVENTORY -------- Compact Wheel Small Storage Unit High-capacity Matter Pod EM Pulse Gun Small Laser Particle Gun Light Assault Rifle Light Assault Rifle Light Assault Rifle Light Assault Rifle Light Assault Rifle Mining Laser [Rating: 11] Favorites ----------- Power Light Ion Engine Engine Light Ion Engine Propulsion Light Treads Treads Light Treads Wheel Compact Wheel Utility High-capacity Storage Unit Device Seismic Detector Storage High-capacity Storage Unit Weapon Medium Laser Energy Gun Medium Laser Ballistic Gun Light Assault Rifle Special Weapon Plasma Flamer Build | -11 -10 -10 ------- Run | Scr Mat Min Slots Evolved . | . . . Power . | . . . Propulsion . | . . . Utility . | . . . Weapon . | . . . Parts Attached 19 | 8 6 5 Power 2 | 1 1 . Engine 2 | 1 1 . Core . | . . . Reactor . | . . . Propulsion 5 | 2 1 2 Treads 2 | . . 2 Leg . | . . . Wheel 3 | 2 1 . Hover . | . . . Flight . | . . . Utility 4 | 2 1 1 Device 2 | 1 . 1 Storage 2 | 1 1 . Processor . | . . . Hackware . | . . . Protection . | . . . Artifact . | . . . Weapon 8 | 3 3 2 Energy Gun 5 | 3 1 1 Energy Cannon . | . . . Ballistic Gun 1 | . 1 . Ballistic Cannon . | . . . Launcher . | . . . Special Weapon 2 | . 1 1 Impact Weapon . | . . . Slashing Weapon . | . . . Piercing Weapon . | . . . Special Melee Weapon . | . . . Unidentified Prototypes . | . . . Parts Lost 8 | . 4 4 Power 2 | . 1 1 Propulsion 2 | . 2 . Utility 2 | . 1 1 Weapon 2 | . . 2 Highest Loss Streak 2 | . 2 2 To Critical Strikes . | . . . Average Slot Usage (%) 92 | . 96 87 Engine 9 | . 13 3 Treads 11 | . . 27 Wheel 14 | . 25 . Device 13 | . 13 13 Storage 14 | . 14 14 Energy Gun 19 | . 16 22 Ballistic Gun 6 | . 10 . Special Weapon 2 | . . 5 Naked Turns . | . . . Heaviest Build 51 | 12 49 51 Greatest Support 40 | 26 26 40 Greatest Overweight (x) 3 | . 3 2 Average Overweight (x) . | . 1 1 Largest Inventory Capacity 20 | 8 20 20 Average Capacity 17 | 7 16 20 Most Carried 12 | 6 7 12 Average Carried 7 | 4 6 10 Final Capacity 20 | 8 20 20 Final Carried 12 | 6 7 12 Class Distribution -------------------- 100% | Mutant Dominant Class ---------------- Mutant | -10/Materials Mutant | -10/Mines Resources | -11 -10 -10 ----------- Run | Scr Mat Min Matter Collected 614 | 280 286 48 Remotely . | . . . Salvage Created 898 | 168 438 292 Parts 66 | 10 42 14 Haulers Intercepted 2 | . 2 . Recyclers Shooed . | . . . Parts Field Recycled . | . . . Retrieved Matter . | . . . Parts Self-Destructed . | . . . Prevented . | . . . Kills | -11 -10 -10 ------- Run | Scr Mat Min Combat Hostiles Destroyed 23 | . 12 11 Guns 21 | . 12 9 Cannons 1 | . . 1 Classes Destroyed 7 | 2 4 1 Tunneler 5 | 5 . . Hauler 2 | . 2 . Recycler 3 | 1 1 1 Watcher 3 | . 3 . Swarmer 15 | . 9 6 Grunt 6 | . 3 3 Assembled 2 | . . 2 Best Kill Streak 6 | 2 5 6 Combat Bots Only 6 | . 5 6 Max Kills in Single Turn 2 | 1 1 2 Gunslinging 1 | . . 1 Exploded . | . . . Melee . | . . . Uniques/NPCs Destroyed . | . . . Combat | -11 -10 -10 -------- Run | Scr Mat Min Damage Taken 968 | . 423 545 Core 259 | . 141 118 Absorbed by Shields . | . . . Core Remaining (%) 100 | 100 . . Volleys Fired 110 | 16 62 32 Largest 2 | 2 2 2 Hottest 150 | 90 100 150 Shots Fired 204 | 32 114 58 Gun 194 | 32 110 52 Cannon . | . . . Launcher . | . . . Special 10 | . 4 6 Kinetic 47 | . 44 3 Thermal 157 | 32 70 55 Explosive . | . . . Electromagnetic . | . . . Robot Hit Streak 17 | 3 17 10 Robot Miss Streak 7 | 2 7 4 Penetration Max . | . . . Secondary Targets 5 | . 2 3 Max Gunslinging Chain 1 | . 1 1 Shots Hit Robots 117 | 19 61 37 Core Hits 53 | 7 28 18 Critical Kills . | . . . Critical Parts Destroyed . | . . . Critical Strikes 8 | . 4 4 Burn 8 | . 4 4 Melee Attacks . | . . . Impact . | . . . Slashing . | . . . Piercing . | . . . Sneak Attacks . | . . . Combat Hostiles . | . . . Follow-up Attacks . | . . . Damage Inflicted 1406 | 233 677 496 Guns 1381 | 233 677 471 Cannons . | . . . Explosions . | . . . Melee . | . . . Ramming . | . . . Kinetic 220 | . 195 25 Thermal 1186 | 233 482 471 Explosive . | . . . Electromagnetic . | . . . Impact . | . . . Slashing . | . . . Piercing . | . . . Highest Corruption . | . . . Average Corruption . | . . . Corruption Purged . | . . . Corruption Blocked . | . . . Overload Shots . | . . . Overflow Damage . | . . . Projectiles . | . . . Explosions . | . . . Melee . | . . . Knockbacks . | . . . Impact . | . . . Kinetic . | . . . Secondary . | . . . Self-Inflicted Damage . | . . . Shots . | . . . Rammed . | . . . Targets Rammed . | . . . Kicked . | . . . Crushed . | . . . Highest Temperature 240 | 210 240 204 Average Temperature 74 | 75 66 86 Received Heat Transfer 376 | . 90 286 Effects 2 | . 1 1 Energy Bleed 1 | . 1 . Interference 1 | . . 1 Siege Activations . | . . . Robots Corrupted . | . . . Combat Hostiles . | . . . Parts Fried . | . . . Impact Corruptions . | . . . Robots Melted 2 | . . 2 Combat Hostiles 1 | . . 1 Parts Melted 12 | 2 6 4 Heat Transferred 4038 | 620 1655 1763 Parts Sabotaged . | . . . Parts Stolen . | . . . Parts Stripped . | . . . Power Chain Reactions . | . . . Missiles Intercepted . | . . . Alert | -11 -10 -10 ------- Run | Scr Mat Min Peak Influence 260 | 30 255 260 Initial 45 | . 19 45 Average 94 | 11 97 111 Maximum Alert Level 1 | . 1 1 Low Security (%) 83 | 100 83 79 Level 1 16 | . 16 20 Level 2 . | . . . Level 3 . | . . . Level 4 . | . . . Level 5 . | . . . High Security . | . . . Max Security . | . . . Squads Dispatched 2 | . 2 . Investigation 1 | . 1 . Extermination . | . . . Reinforcement 1 | . 1 . Assault . | . . . Garrison . | . . . Intercept . | . . . Searches Triggered . | . . . Construction Impeded . | . . . Haulers Reinforced . | . . . Active Scanning Responses . | . . . Cargo Convoy Interrupts . | . . . Stealth | -11 -10 -10 --------- Run | Scr Mat Min Distress Signals 1 | . 1 . Communications Jammed . | . . . Distress Signals . | . . . Times Spotted 45 | . 20 25 Peak Tracking Total 15 | . 5 15 Tactical Retreats 3 | . 2 1 Traps | -11 -10 -10 ------- Run | Scr Mat Min Traps Triggered 1 | . 1 . Indirectly . | . . . Trap Hack Attempts . | . . . Triggered . | . . . Disarmed . | . . . Reprogrammed . | . . . Reused . | . . . Traps Extracted . | . . . Installed . | . . . Triggered . | . . . Machines | -11 -10 -10 ---------- Run | Scr Mat Min Machines Disabled . | . . . Max in Single Turn . | . . . Machines Sabotaged . | . . . Garrisons Compromised . | . . . Overloaded Fab Kills . | . . . Hacking | -11 -10 -10 --------- Run | Scr Mat Min Machines Accessed 6 | . 6 . Terminals 6 | . 6 . Fabricators . | . . . Repair Stations . | . . . Recycling Units . | . . . Scanalyzers . | . . . Garrison Access . | . . . Total Hacks 24 | . 24 . Successful 8 | . 8 . Failed 15 | . 15 . Catastrophic 4 | . 4 . Database Lockouts 1 | . 1 . Manual 16 | . 16 . Terminals 24 | . 24 . Fabricators . | . . . Repair Stations . | . . . Recycling Units . | . . . Scanalyzers . | . . . Garrison Access . | . . . Terminal Hacks 7 | . 7 . Part Schematic 1 | . 1 . Prototype ID Bank 3 | . 3 . Terminal Index 1 | . 1 . Alert Level 1 | . 1 . Hauler Manifests 1 | . 1 . Fabricator Hacks . | . . . Repair Station Hacks . | . . . Recycling Unit Hacks . | . . . Scanalyzer . | . . . Garrison Access Hacks . | . . . Unauthorized Hacks 1 | . 1 . Terminals 1 | . 1 . Operators 1 | . 1 . Fabricators . | . . . Repair Stations . | . . . Recycling Units . | . . . Scanalyzers . | . . . Garrison Access . | . . . Data Cores Recovered . | . . . Used . | . . . Hacking Detections 6 | . 6 . Full Trace Events . | . . . Feedback Events . | . . . Feedback Blocked . | . . . Robot Schematics Acquired . | . . . Robots Built . | . . . Authchips . | . . . Time . | . . . Total Robot Build Rating . | . . . Part Schematics Acquired 1 | . 1 . Parts Built . | . . . Authchips . | . . . Time . | . . . Total Part Build Rating . | . . . Parts Repaired . | . . . Time . | . . . Parts Recycled . | . . . Recycled Matter . | . . . Retrieved Matter . | . . . Retrieved Components . | . . . Parts Scanalyzed . | . . . Part Schematics Acquired . | . . . Parts Damaged . | . . . Bothacking | -11 -10 -10 ------------ Run | Scr Mat Min Used RIF Installer . | . . . Robots Hacked . | . . . Non-combat . | . . . Combat . | . . . Robot Hacks Applied . | . . . Relay Couplers Released . | . . . Fabnet Peak Effective % . | . . . Robots Rewired . | . . . Allies Hacked . | . . . Hacks Repelled . | . . . Allies | -11 -10 -10 -------- Run | Scr Mat Min Total Allies . | . . . Largest Group . | . . . Highest-Rated Group . | . . . Highest-Rated Ally . | . . . Total Orders . | . . . Ally Attacks . | . . . Total Damage . | . . . Kills . | . . . Allies Corrupted . | . . . Allies Melted . | . . . Intel | -11 -10 -10 ------- Run | Scr Mat Min Robot Analysis Total . | . . . Derelict Logs Recovered 2 | . . 2 Drone Launches . | . . . Drone Recoveries . | . . . Exploration | -11 -10 -10 ------------- Run | Scr Mat Min Turns Passed 2083 | 205 1065 813 Spaces Moved 1021 | 159 567 295 Core 9 | 9 . . Treads 292 | . . 292 Legs . | . . . Wheels 720 | 150 567 3 Hover . | . . . Flight . | . . . Fastest Speed 50 | 50 90 130 Average Speed 142 | 87 108 238 Slowest Speed 240 | 90 145 240 Overloaded Moves . | . . . Propulsion Burnouts . | . . . Robots Hopped . | . . . Cave-ins Triggered . | . . . Exploration Rate (%) 56 | 8 85 75 Regions Visited 2 Branch Regions 1 Pre-discovered Areas . | . . . Known Exits Taken . | . . . Unknown Exits Taken 2 | 1 1 . Scrap Searched 1 | . . 1 Spaces Dug 3 | . 3 . Terrain Destroyed 3 | . 3 . Melee . | . . . Projectile 3 | . 3 . AOE . | . . . Terrain Rammed . | . . . Walls Destroyed . | . . . Machines Disabled . | . . . Actions | -11 -10 -10 --------- Run | Scr Mat Min Total 1432 | 188 903 341 Wait 268 | . 266 2 Move 1019 | 158 566 295 Hop . | . . . Pick Up 15 | 6 2 7 Fast Attach 9 | 7 1 1 Attach 4 | . 2 2 Detach . | . . . Swap 6 | 1 3 2 Drop 1 | . 1 . Fire 110 | 16 62 32 Melee . | . . . Ram . | . . . Kick . | . . . Crush . | . . . Escape Stasis . | . . . Rewire . | . . . Trap . | . . . Miscellaneous . | . . . Route ------- -11/Scrapyard -10/Materials (discovered 4 exits: [*Mat x3] / [*Min]) -10/Mines (discovered 1 exit: [*Mat]) History --------- Turn | Location | Event 22 | -11/Scrapyard | Discovered new exit (range 15) 206 | -11/Scrapyard | Entered Materials 290 | -10/Materials | Discovered new exit (range 15) 302 | -10/Materials | Build established: Mutant 618 | -10/Materials | Discovered new exit (range 16) 867 | -10/Materials | Discovered new exit (range 13) 1133 | -10/Materials | Central database locked down 1149 | -10/Materials | Discovered new exit (range 16) 1244 | -10/Materials | Core integrity fell below 50% 1271 | -10/Materials | Entered Mines 1274 | -10/Mines | Met a Derelict bent on vengeance 1383 | -10/Mines | Learned Materials terminal intel 1390 | -10/Mines | Learned 2 Materials zone layouts 1473 | -10/Mines | Discovered new exit (range 9) 1475 | -10/Mines | Core integrity fell below 20% 1761 | -10/Mines | A weapon hastily lodged in a ceiling crevice suddenly fell to the ground 1797 | -10/Mines | Deemed a non-threat by the Exiles lab entrance 1909 | -10/Mines | Found a hidden stash of uninstalled traps 2025 | -10/Mines | Assembled infested the area 2030 | -10/Mines | Assisted by a Guerilla fighting off Assembled 2084 | -10/Mines | Destroyed by as-43728 with Assembled F-torch Last Messages --------------- 01912_ K-01 Serf collects debris. 02025_ ALERT: Infestation in the mines, dispatching Demolisher response squad. 02025_ T-07 Excavator destroyed. 02030_ A derelict emerges from the shadows: "You need to get out of here! I've been tracking a group of Assembled to figure out where they're coming from, and they're closing on this area, come on!" 02030_ DU-Q08(h): "I'll hold them off! Go on ahead or try to find another way!" 02032_ HV Slug penetrates Wall. 02034_ as-33899 destroyed. 02036_ as-54646 suffers critical hit (Destroy). 02036_ as-54646 destroyed. 02038_ DU-Q08(h) heat spikes uncontrollably. 02038_ as-26615 destroyed. 02051_ as-00716 destroyed. 02057_ as-43728 suffers critical hit (Burn). 02060_ Heat Sink destroyed. 02072_ as-43297 destroyed. 02083_ Med. Laser destroyed. Map ----- +----------------------------------------------------+ | ????????? ?????????????????????????????????? | | ????????# ?????????????????????????????????? | | ????????# $?????????????????????????????????? | | ????????# ?????????????????????????????????? | | ????????#==?????????????????????????????????? | | ???????##*%?????????????????????????????????? | | ???????# !|#????????????????????????????????? | | ???????# #????????????????????????????????? | | ??????## #????????????????????????????????? | | ?????## % #????????????????????????????????? | | ?????# %##???????????????????????????????? | | ?????# ###?????????????????????????????? | | ?????# % ##??????????"""???????????????? | | ?????# ########??? ?????????????? | | ??????# #?? ??????????????? | | ??????## #?# ???????????????? | | ???????# ###### ## #???????????????? | | ???????## ####??? % #????????????????? | | ????????#### #??? #?????????????????? | | ???????????# ## #??? #??????????????????? | | ???????????# ##%#??? t#???????????????????? | | ??????###### ## #??? #???????????????????# | | ??????# ## #?## ##??????????????????# | | ??????# ## ### ####??????????????## | | ??????# #######a##a #?????????????## | | ?????## ###???# aaa@ t #???????### | | ?????# ########a #?????## | | ?????# ##??## ## ???# | | ?????## #???#####???## ????# | | ??????## ##??????????????? ????## | | ???????## ##?????????????????????????## | | ????????## #???????????????????????????# | | ?????????## #??????????????????????????## | | ??????????# #?????????????????####?????# | | ??????????# %#????????????????## ##????# | | ?????????## ##??????????????## ###??## | | ?????????# ##????????????## ##?## | | ?????????# ##???????????# ### | | ?????????# #??????????## | | ?????????# #?????????## | | ?????????## ##????????## | | ??????????# && #?????##### ####### | | ?????????## & &#????## #?????## | | ????????## & #???## #??????##### | | ????##### ##### #??????????? | | ???## = = #??????????? | | ???# % ##### ##??????????? | | ???# #######???## ##???????????? | | ???## ###### #??????????# #????????????? | | ????###????## ##??????????# ????????????? | +----------------------------------------------------+ Best States ------------- Heat Dissipation 35 Energy Generation 10 Energy Capacity 250 Matter Stores 300 Matter Capacity 300 Sight Range 16 Terrain Scan Density 10 Evasion (%) 42 Recoil Reduction 2 Item Schematics ----------------- Huge Storage Unit | -10/Materials | Hacked Robot Schematics ------------------ None Fabricated ------------ Nothing Alien Tech Used ----------------- None Achievements -------------- None Challenges ------------ None Game ------ Seed PulseSkeletonDiverter Manual? 0 Play Time 00:14:38 Cumulative 527.1 hours Start 2022.05.01 @ 02:38:12 End 2022.05.01 @ 02:52:00 Sessions 1 Manual Loads 0 Difficulty Rogue Special Mode None Game No. 173 Rogue 169 Adventurer 4 Explorer 0 Win Type - Total 13 Types 6/2/3/0/0/0/1/1/0 Lore% 82 Gallery% 86 Achievement% 73 Wizard Run 0 Options --------- ASCII 1 Keyboard 0 Movement Arrows Keybinds 0 Fullscreen 1 Font 18/SmallcapsGlow Map View 76x50 Tactical HUD 1 Map Filters NONE Filters NONE Steam 1 RUN: 12449b46-19d7-42c3-a338-df4b2c936997